bitfinex-derivatives/quotes_SOLF0:USTF0_20250829
["timestamp","ask_amount","ask_price","bid_price","bid_amount"]
[1756443754584,7.17120633,216.58,216.48,162.86531656]
[1756443754781,7.14,216.57,216.49,117.82]
[1756443756371,7.14,216.57,216.48,162.83531656]
[1756443756578,7.04,216.55,216.49,117.82]
[1756443760085,4.05085441,216.56,216.49,117.82]
[1756443760281,4.05085441,216.56,216.48,162.83531656]
[1756443760680,7.04,216.51,216.48,162.83531656]
[1756443761284,4.05085441,216.52,216.48,162.83531656]
[1756443761481,4.08092266,216.52,216.48,162.83531656]
[1756443761680,11.12092266,216.52,216.48,162.83531656]
[1756443762087,7.07006825,216.52,216.48,162.83531656]
[1756443762787,0.03006825,216.52,216.48,162.83531656]
[1756443763187,0.03006825,216.52,216.5,0.05]
[1756443764880,0.03006825,216.52,216.49,117.8]
[1756443765382,0.03006825,216.52,216.49,0.05]
[1756443765585,0.03006825,216.52,216.49,117.85]
[1756443765777,0.03006825,216.52,216.5,0.05]
[1756443765981,11.09085441,216.65,216.5,0.05]
[1756443766187,11.09085441,216.65,216.52,0.02]
[1756443766385,11.09085441,216.65,216.54,0.02]
[1756443766588,4.05085441,216.65,216.56,0.02]
[1756443766786,4.05085441,216.65,216.57,117.8]
[1756443767390,11.09085441,216.69,216.58,0.02]
[1756443769494,11.09085441,216.65,216.56,21.54]
[1756443770088,11.09085441,216.65,216.53,0.02]
[1756443770089,7.04,216.64,216.53,0.02]
[1756443770381,7.04,216.64,216.53,42.02]
[1756443774394,11.09085441,216.7,216.54,0.02]
[1756443774593,11.09085441,216.7,216.55,0.02]
[1756443775290,11.09085441,216.7,216.55,5.16165841]
[1756443776187,11.09085441,216.7,216.56,5.14165841]
[1756443776393,11.09085441,216.7,216.55,31.66]
[1756443776595,7.04,216.69,216.55,31.66]
[1756443777895,4.05085441,216.66,216.55,31.66]
[1756443780095,4.05085441,216.66,216.55,0.02]
[1756443780396,11.09085441,216.62,216.51,5.14165841]
[1756443780599,11.09085441,216.62,216.52,0.02]
[1756443780798,4.05085441,216.66,216.55,5.14165841]
[1756443781001,4.05085441,216.66,216.56,5.16165841]
[1756443781201,4.05085441,216.66,216.56,0.02]
[1756443781402,7.04,216.68,216.56,5.16165841]
[1756443781698,4.05085441,216.73,216.59,5.14165841]
[1756443781901,4.05085441,216.73,216.6,5.14165841]
[1756443782204,4.05085441,216.73,216.61,0.02]
[1756443782504,4.05085441,216.65,216.51,5.16165841]
[1756443782704,4.05085441,216.61,216.51,0.02]
[1756443783600,2.46889734,216.6,216.51,0.02]
[1756443783802,0.03480293,216.58,216.51,0.02]
[1756443783998,7.07480293,216.58,216.48,178.33531656]
[1756443784594,7.07480293,216.58,216.48,162.83531656]
[1756443784795,7.04,216.56,216.48,162.83531656]
[1756443785201,0.03480293,216.58,216.49,0.05]
[1756443789609,0.03480293,216.58,216.49,7.63968061]
[1756443789805,0.03480293,216.58,216.53,0.05]
[1756443790005,4.05085441,216.7,216.55,0.05]
[1756443790205,4.05085441,216.7,216.56,4.05085441]
[1756443791205,6.96,216.69,216.56,4.05085441]
[1756443791399,11.01085441,216.6,216.5,7.63968061]
[1756443791605,11.01085441,216.6,216.49,7.63968061]
[1756443791798,11.01085441,216.6,216.48,162.88531656]
[1756443792709,0.03380229,216.56,216.48,162.88531656]
[1756443794305,0.03380229,216.56,216.49,0.05]
[1756443797104,0.03380229,216.56,216.43,310.18]
[1756443797105,4.05085441,216.51,216.43,310.18]
[1756443797910,0.03293908,216.49,216.43,310.18]
[1756443800711,0.03293908,216.49,216.42,117.88]
[1756443806815,11.01085441,216.47,216.42,117.88]
[1756443807112,6.96,216.46,216.42,117.88]
[1756443807316,11.01085441,216.47,216.37,0.05]
[1756443808015,0.03316298,216.44,216.37,0.05]
[1756443808412,4.05085441,216.43,216.37,0.05]
[1756443808717,4.05085441,216.43,216.35,95.34]
[1756443811719,6.96,216.42,216.33,0.05]
[1756443811916,4.05085441,216.39,216.25,0.05]
[1756443812116,6.96,216.42,216.25,0.05]
[1756443812319,4.05085441,216.39,216.25,0.05]
[1756443812515,0.03471314,216.34,216.25,0.05]
[1756443820321,7.72,216.33,216.25,0.05]
[1756443822518,7.72,216.33,216.19,0.06]
[1756443822719,4.05085441,216.31,216.2,117.78]
[1756443823022,7.72,216.3,216.2,117.78]
[1756443823227,0.03446358,216.28,216.2,117.78]
[1756443823520,11.77085441,216.27,216.14,310.38]
[1756443823718,7.72,216.24,216.14,428.16]
[1756443827526,11.77085441,216.27,216.15,0.06]
[1756443833229,7.72,216.26,216.14,428.1]
[1756443833431,4.05085441,216.27,216.14,428.1]
[1756443833930,7.72,216.26,216.14,428.1]
[1756443834531,7.72,216.26,216.14,428.16]
[1756443834831,4.05085441,216.27,216.14,428.16]
[1756443835031,7.72,216.26,216.14,428.16]
[1756443835325,2.58846768,216.22,216.14,428.16]
[1756443835525,7.72,216.21,216.1,0.06]
[1756443835731,2.58846768,216.18,216.1,0.06]
[1756443837033,10.30846768,216.18,216.1,0.06]
[1756443837333,2.58846768,216.16,216.1,0.06]
[1756443839536,7.72,216.18,216.1,0.06]
[1756443839936,2.58846768,216.17,216.1,0.06]
[1756443840332,7.72,216.25,216.1,0.06]
[1756443840632,2.58846768,216.2,216.1,0.06]
[1756443841439,7.72,216.19,216.1,0.06]
[1756443841735,2.58846768,216.17,216.11,117.82]
[1756443842143,7.72,216.19,216.12,0.06]
[1756443843143,108.94158136,216.27,216.12,2.64846768]
[1756443843346,2.58846768,216.24,216.12,2.64846768]
[1756443843641,7.72,216.23,216.12,2.64846768]
[1756443844545,7.72,216.23,216.13,0.06]
[1756443846134,7.72,216.3,216.13,0.06]
[1756443846343,7.21,216.28,216.18,0.05]
[1756443846535,310.62,216.31,216.18,14.13]
[1756443846536,2.58846768,216.26,216.18,14.13]
[1756443846739,7.21,216.25,216.14,16.5]
[1756443848939,7.21,216.22,216.14,16.5]
[1756443849137,2.58846768,216.31,216.17,0.05]
[1756443849341,7.21,216.27,216.17,2.63846768]
[1756443850047,7.21,216.27,216.17,0.05]
[1756443851445,7.21,216.24,216.14,18.36]
[1756443851846,7.21,216.21,216.14,18.36]
[1756443854148,7.21,216.25,216.14,18.36]
[1756443854347,7.21,216.25,216.15,0.06]
[1756443859358,7.21,216.34,216.16,0.06]
[1756443859556,2.58846768,216.37,216.16,0.06]
[1756443859557,7.21,216.25,216.16,0.06]
[1756443859956,7.21,216.22,216.11,58.5]
[1756443860156,7.21,216.22,216.12,0.06]
[1756443860553,2.58846768,216.2,216.08,3.45332458]
[1756443860755,7.21,216.19,216.09,117.78]
[1756443860954,7.21,216.19,216.11,2.58846768]
[1756443861258,2.58846768,216.23,216.11,2.64846768]
[1756443861459,7.21,216.22,216.11,2.64846768]
[1756443862249,2.58846768,216.2,216.11,0.06]
[1756443862456,7.21,216.19,216.11,0.06]
[1756443862658,7.21,216.19,216.09,117.78]
[1756443862960,2.58846768,216.2,216.08,117.78]
[1756443863154,2.58846768,216.24,216.11,2.58846768]
[1756443863360,7.21,216.23,216.12,0.06]
[1756443865360,7.21,216.23,216.12,7.69968061]
[1756443865565,7.21,216.23,216.13,7.63968061]
[1756443865753,7.21,216.23,216.15,0.06]
[1756443865958,7.21,216.23,216.16,64.62]
[1756443868165,7.21,216.23,216.16,72.25968061]
[1756443868664,7.21,216.23,216.15,0.06]
[1756443868865,2.58846768,216.22,216.15,0.06]
[1756443869067,2.58846768,216.22,216.13,7.63968061]
[1756443869659,7.21,216.23,216.14,0.06]
[1756443869855,7.21,216.23,216.15,7.63968061]
[1756443870659,9.79846768,216.23,216.15,7.63968061]
[1756443870964,9.79846768,216.23,216.14,7.69968061]
[1756443872363,7.21,216.19,216.12,7.63968061]
[1756443872568,7.21,216.19,216.11,7.63968061]
[1756443873365,7.21,216.19,216.09,117.94]
[1756443873366,7.21,216.19,216.1,7.63968061]
[1756443874263,2.58846768,216.18,216.1,7.63968061]
[1756443875660,7.21,216.19,216.1,7.63968061]
[1756443875861,2.58846768,216.18,216.1,7.63968061]
[1756443876768,2.58846768,216.24,216.14,7.63968061]
[1756443877065,9.66846768,216.24,216.14,7.63968061]
[1756443877467,9.66846768,216.21,216.13,7.63968061]
[1756443877662,9.70260092,216.21,216.12,7.63968061]
[1756443878066,9.66846768,216.21,216.12,7.63968061]
[1756443878468,2.58846768,216.18,216.11,7.63968061]
[1756443879270,0.0317682,216.19,216.11,7.63968061]
[1756443879867,7.08,216.18,216.11,7.63968061]
[1756443883572,7.08,216.18,216.1,7.63968061]
[1756443883772,7.08,216.18,216.09,125.43968061]
[1756443884073,7.08,216.18,216.09,117.8]
[1756443884673,7.08,216.18,216.1,7.69968061]
[1756443884870,7.08,216.18,216.1,0.06]
[1756443885577,0.03414537,216.16,216.1,117.86]
[1756443885870,0.03414537,216.16,216.11,7.63968061]
[1756443886069,0.03414537,216.16,216.12,0.06]
[1756443886374,0.03414537,216.16,216.13,0.06]
[1756443886671,0.03414537,216.16,216.12,118.3]
[1756443886874,0.03414537,216.16,216.15,7.69968061]
[1756443887074,0.03414537,216.16,216.15,0.06]
[1756443887470,0.03414537,216.16,216.15,118.4]
[1756443887675,0.03414537,216.16,216.15,126.17677208]
[1756443887875,0.03414537,216.16,216.15,118.4]
[1756443888077,0.03414537,216.16,216.15,0.06]
[1756443888376,0.03414537,216.16,216.15,118.38]
[1756443888675,0.03414537,216.16,216.15,7.83677208]
[1756443888875,0.03414537,216.16,216.15,126.17677208]
[1756443889172,11.15984601,216.28,216.15,118.8]
[1756443889376,11.15984601,216.28,216.17,7.77677208]
[1756443890277,11.15984601,216.28,216.18,118.32]
[1756443890478,11.15984601,216.28,216.2,0.03476037]
[1756443890877,11.15984601,216.28,216.21,118.28]
[1756443891172,9.54431558,216.27,216.2,0.03476037]
[1756443891373,7.08,216.25,216.2,0.03476037]
[1756443892676,7.08,216.27,216.2,0.03476037]
[1756443892879,7.08,216.25,216.2,0.03476037]
[1756443893079,7.08,216.27,216.2,0.03476037]
[1756443893275,4.07984601,216.24,216.2,0.03476037]
[1756443893669,7.08,216.23,216.2,0.03476037]
[1756443894172,4.07984601,216.24,216.2,0.03476037]
[1756443894378,7.08,216.23,216.2,0.03476037]
[1756443894872,4.07984601,216.24,216.2,0.03476037]
[1756443895079,9.54311094,216.23,216.11,7.77677208]
[1756443895280,4.07984601,216.19,216.1,45.4]
[1756443895475,7.08,216.18,216.1,45.4]
[1756443895677,7.08,216.18,216.07,7.83677208]
[1756443895978,7.08,216.18,216.08,118.22]
[1756443896375,0.03009746,216.15,216.07,7.83677208]
[1756443896583,0.03009746,216.15,216.09,118.18]
[1756443896878,0.03009746,216.15,216.07,7.83677208]
[1756443897073,7.11009746,216.15,216.07,0.06]
[1756443897880,7.11009746,216.15,216.08,118.14]
[1756443898085,7.11009746,216.15,216.07,0.06]
[1756443898378,11.18994347,216.15,216.07,118.1]
[1756443899982,7.11009746,216.15,216.06,310.7]
[1756443900185,7.08,216.14,216.06,310.7]
[1756443900383,7.08,216.14,216.06,428.72]
[1756443900879,7.08,216.14,216.07,0.06]
[1756443901178,0.03009746,216.15,216.07,0.06]
[1756443901384,2.61974527,216.15,216.07,0.06]
[1756443904488,2.61974527,216.15,216.06,310.7]
[1756443904489,0.03009746,216.15,216.06,310.7]
[1756443904680,0.03009746,216.15,216.11,7.77677208]
[1756443904883,0.03009746,216.15,216.09,7.77677208]
[1756443905182,0.03009746,216.15,216.08,7.77677208]
[1756443905381,0.03009746,216.15,216.06,311.5050524]
[1756443905382,2.58964781,216.13,216.09,118.74]
[1756443905587,9.66964781,216.13,216.06,310.7]
[1756443905888,9.66964781,216.1,216.07,118.74]
[1756443906283,9.66964781,216.1,216.06,310.7]
[1756443906490,9.66964781,216.1,216.08,118.78]
[1756443906683,9.66964781,216.1,216.06,310.7]
[1756443906684,2.58964781,216.1,216.06,310.7]
[1756443906878,2.58964781,216.1,216.08,118.76]
[1756443906879,7.47,216.09,216.08,118.76]
[1756443908486,2.58964781,216.1,216.08,118.76]
[1756443908686,10.05964781,216.1,216.08,118.76]
[1756443908881,7.47,216.09,216.06,310.7]
[1756443909192,7.47,216.09,216.06,118.62]
[1756443909491,2.58964781,216.1,216.06,118.62]
[1756443909891,7.47,216.09,216.06,118.62]
[1756443910186,7.47,216.09,215.99,158.54123704]
[1756443910392,2.58964781,216.04,215.99,0.08]
[1756443910592,2.58964781,216.04,216.0,105.84]
[1756443910988,2.62272567,216.04,216.0,105.92]
[1756443911192,0.03307786,216.04,215.94,0.08]
[1756443911390,2.58964781,216.02,215.94,0.08]
[1756443911591,2.58964781,216.02,215.95,71.66]
[1756443912392,0.03307786,216.04,215.96,0.08]
[1756443914197,0.03307786,216.04,215.97,66.62]
[1756443915297,0.03307786,216.04,215.96,0.08]
[1756443915498,0.03307786,216.04,215.97,118.52]
[1756443915693,0.03307786,216.04,215.96,0.08]
[1756443915893,0.03307786,216.04,215.97,67.6]
[1756443916090,0.03307786,216.04,215.96,0.08]
[1756443916302,0.03307786,216.04,215.97,63.52]
[1756443916303,7.47,216.01,215.97,63.52]
[1756443917096,2.58964781,216.02,215.96,118.44]
[1756443917493,2.58964781,216.02,215.93,0.07]
[1756443917692,2.58964781,216.02,215.94,118.42]
[1756443917896,0.03043045,216.01,215.94,118.42]
[1756443918592,0.03043045,216.01,215.95,0.07]
[1756443919602,0.03043045,216.01,215.97,0.07]
[1756443919892,0.03043045,216.01,215.97,118.49]
[1756443920899,0.03043045,216.01,215.92,0.07]
[1756443921097,2.62007826,216.01,215.92,0.07]
[1756443921396,2.62007826,216.01,215.93,118.38]
[1756443922500,2.62007826,216.01,215.94,118.34]
[1756443924403,2.62007826,216.01,215.94,118.22]
[1756443924601,2.58964781,215.95,215.82,538.07]
[1756443924893,2.58964781,215.91,215.83,118.24]
[1756443925300,0.02920111,215.89,215.83,118.24]
[1756443925698,0.02920111,215.89,215.73,310.94]
[1756443925699,10.05964781,215.88,215.74,2.58964781]
[1756443925998,10.05964781,215.88,215.76,0.07]
[1756443926195,99.38421587,215.97,215.77,2.58964781]
[1756443926396,99.38421587,215.97,215.78,0.07]
[1756443926397,0.03111048,215.84,215.78,0.07]
[1756443926795,2.58964781,215.86,215.79,118.42]
[1756443927095,0.03483009,215.83,215.8,118.47]
[1756443927301,0.03483009,215.83,215.8,0.07]
[1756443927995,0.03483009,215.83,215.79,118.45]
[1756443928197,2.58964781,215.81,215.74,0.07]
[1756443928398,2.58964781,215.82,215.75,118.38]
[1756443929102,2.58964781,215.82,215.74,0.07]
[1756443929400,0.03483009,215.83,215.76,2.58964781]
[1756443929596,0.03483009,215.83,215.77,0.07]
[1756443930702,0.03483009,215.83,215.78,118.44]
[1756443930999,0.03483009,215.83,215.79,0.07]
[1756443931199,0.03483009,215.83,215.74,0.07]
[1756443931405,2.58964781,215.82,215.75,118.38]
[1756443931799,7.47,215.8,215.73,311.74629279]
[1756443932005,10.05964781,215.82,215.73,310.94]
[1756443932298,7.47,215.75,215.71,118.56]
[1756443932504,7.47,215.79,215.72,0.07]
[1756443932696,2.62103669,215.8,215.72,0.07]
[1756443932899,2.58964781,215.8,215.72,0.07]
[1756443933202,7.47,215.84,215.72,0.07]
[1756443933497,0.03078203,215.78,215.72,0.07]
[1756443933705,0.03078203,215.78,215.74,0.07]
[1756443934109,0.03078203,215.78,215.73,2.58964781]
[1756443934301,0.03078203,215.78,215.74,118.68]
[1756443934699,0.03078203,215.78,215.74,0.08]
[1756443934899,0.03078203,215.78,215.75,118.68]
[1756443935106,0.03078203,215.78,215.76,0.08]
[1756443935499,2.58964781,215.89,215.77,0.05]
[1756443935699,7.47,215.9,215.81,2.58964781]
[1756443935901,7.47,215.9,215.82,115.73]
[1756443936103,2.58964781,215.87,215.81,118.74]
[1756443936299,10.29964781,215.87,215.76,0.05]
[1756443936505,2.58964781,215.84,215.77,118.82]
[1756443936805,7.71,215.83,215.79,0.03502119]
[1756443937508,2.58964781,215.85,215.79,0.03502119]
[1756443938004,2.58964781,215.85,215.77,118.82]
[1756443938206,2.58964781,215.85,215.8,0.02922649]
[1756443938410,7.71,215.84,215.8,0.02922649]
[1756443938702,2.58964781,215.85,215.8,0.02922649]
[1756443939400,7.71,215.84,215.8,0.02922649]
[1756443939600,2.58964781,215.85,215.8,0.02922649]
[1756443940107,7.71,215.84,215.8,0.02922649]
[1756443940605,2.58964781,215.85,215.8,0.02922649]
[1756443941005,2.58964781,215.82,215.8,0.02922649]
[1756443941207,7.71,215.81,215.8,0.02922649]
[1756443941405,7.71,215.81,215.77,118.8]
[1756443941606,7.71,215.81,215.78,0.02921694]
[1756443941906,99.38421587,215.97,215.82,64.9122]
[1756443941907,7.71,215.87,215.82,64.9122]
[1756443942212,2.58964781,215.89,215.83,118.7]
[1756443942805,72.4992,216.07,215.84,0.05]
[1756443943103,7.71,215.94,215.84,0.05]
[1756443943303,7.71,215.94,215.85,70.34]
[1756443943506,7.71,215.94,215.93,0.03539689]
[1756443944010,7.71,215.94,215.87,67.22]
[1756443944304,7.71,215.94,215.91,0.03552939]
[1756443944501,2.58964781,215.92,215.91,0.03552939]
[1756443944701,10.29964781,215.92,215.91,0.03552939]
[1756443944906,10.29964781,215.92,215.85,118.9]
[1756443945108,7.71,215.92,215.89,0.03461235]
[1756443945308,2.58964781,216.04,215.89,0.03461235]
[1756443945503,2.58964781,215.92,215.89,0.03461235]
[1756443945710,7.71,215.91,215.85,41.44]
[1756443946103,7.71,215.91,215.88,0.03181566]
[1756443946304,2.58964781,216.04,215.88,0.03181566]
[1756443946305,7.71,215.95,215.88,0.03181566]
[1756443946505,2.58964781,215.94,215.88,0.03181566]
[1756443946709,7.71,215.95,215.86,0.05]
[1756443946710,10.29964781,215.95,215.86,0.05]
[1756443947109,10.29964781,215.95,215.89,0.03156272]
[1756443948714,7.71,215.95,215.89,0.03156272]
[1756443948912,22.26,216.06,215.89,0.03156272]
[1756443948913,2.58964781,215.98,215.9,0.05]
[1756443949713,2.58964781,215.98,215.92,0.03321219]
[1756443950213,2.58964781,215.99,215.92,0.03321219]
[1756443950510,10.29964781,216.0,215.92,0.03321219]
[1756443953614,7.71,216.0,215.92,0.03321219]
[1756443954806,2.58964781,216.07,215.94,2.58964781]
[1756443955011,7.71,216.06,215.94,2.58964781]
[1756443955405,7.71,216.06,215.97,2.58964781]
[1756443955610,7.71,216.06,215.98,2.67022493]
[1756443955812,7.71,216.06,215.99,81.82]
[1756443956608,7.71,216.06,215.98,0.08057712]
[1756443956813,7.71,216.06,215.99,118.82]
[1756443957812,7.71,216.12,216.01,0.05]
[1756443958310,7.71,216.12,216.03,2.58964781]
[1756443958512,7.71,216.12,216.04,0.03303718]
[1756443959711,10.29964781,216.12,216.04,0.03303718]
[1756443960314,7.71,216.12,216.04,0.03303718]
[1756443960509,7.71,216.19,216.06,2.58964781]
[1756443960706,2.58964781,216.17,216.05,0.05]
[1756443960909,7.71,216.13,216.06,18.0]
[1756443961113,7.71,216.13,216.02,2.58964781]
[1756443961310,2.58964781,216.15,216.09,0.03184658]
[1756443961517,7.71,216.15,216.09,0.03184658]
[1756443961817,7.71,216.15,216.05,2.58964781]
[1756443962115,7.71,216.16,216.1,0.03533409]
[1756443962516,2.58964781,216.14,216.1,0.03533409]
[1756443962915,7.71,216.14,216.04,11.05]
[1756443963419,7.71,216.14,216.1,0.03342507]
[1756443963615,7.71,216.17,216.1,0.03342507]
[1756443964512,7.71,216.11,216.1,0.03342507]
[1756443964716,7.71,216.11,216.0,0.05]
[1756443965712,7.71,216.11,216.02,0.08]
[1756443965910,7.71,216.11,216.04,2.58964781]
[1756443966119,0.0313294,216.08,216.05,0.08]
[1756443966421,0.0313294,216.08,216.02,2.58964781]
[1756443966717,0.0313294,216.08,216.02,2.65964781]
[1756443967715,7.3413294,216.08,216.02,118.74]
[1756443968517,7.3413294,216.08,216.0,118.74]
[1756443969814,0.0313294,216.08,216.01,2.65964781]
[1756443972224,0.0313294,216.08,216.04,2.58964781]
[1756443972420,0.0313294,216.08,216.07,0.07]
[1756443972728,0.0313294,216.08,216.05,0.07]
[1756443972916,7.31,216.14,216.05,0.07]
[1756443973114,0.03548939,216.09,216.05,0.07]
[1756443973819,0.03548939,216.09,216.05,2.65964781]
[1756443974022,0.03548939,216.09,216.06,0.07]
[1756443974622,0.03548939,216.09,216.05,2.58964781]
[1756443975413,0.03548939,216.09,216.06,0.07]
[1756443975819,0.03548939,216.09,216.05,2.58964781]
[1756443977124,0.03548939,216.09,216.06,0.07]
[1756443977317,0.03548939,216.09,216.05,2.58964781]
[1756443977518,0.03548939,216.09,216.06,0.07]
[1756443977722,0.03548939,216.09,216.05,2.58964781]
[1756443978320,0.03548939,216.09,216.06,0.07]
[1756443978523,0.03548939,216.09,216.07,118.34]
[1756443978823,0.03548939,216.09,216.07,118.41]
[1756443979519,0.03548939,216.09,216.06,118.34]
[1756443979721,0.03548939,216.09,216.06,118.33]
[1756443979919,7.31,216.15,216.06,118.33]
[1756443980116,0.03211079,216.1,216.06,118.33]
[1756443980924,7.31,216.09,216.03,118.28]
[1756443981124,7.31,216.09,216.02,2.58964781]
[1756443981324,7.31,216.09,216.03,118.24]
[1756443981622,0.03390685,216.08,216.03,118.24]
[1756443981825,0.03390685,216.08,216.03,118.31]
[1756443982521,0.03390685,216.08,216.03,118.24]
[1756443982725,0.03390685,216.08,216.04,0.07]
[1756443984028,0.03390685,216.08,216.05,0.07]
[1756443984229,0.03390685,216.08,216.07,2.58964781]
[1756443984431,0.03390685,216.08,216.07,2.65964781]
[1756443984920,0.03390685,216.08,216.07,2.58964781]
[1756443985123,0.03390685,216.08,216.04,62.85964781]
[1756443985326,7.34390685,216.08,215.96,0.07]
[1756443985529,7.31,216.08,215.94,146.22023202]
[1756443985822,0.03389495,216.04,215.99,2.58964781]
[1756443986428,0.03389495,216.04,216.0,0.07]
[1756443988444,0.03389495,216.04,215.99,2.58964781]
[1756443988643,0.03389495,216.04,216.0,0.07]
[1756443990138,0.03389495,216.04,215.98,2.58964781]
[1756443990339,0.03389495,216.04,215.98,2.65964781]
[1756443990946,0.03389495,216.04,216.0,0.07]
[1756443991348,0.03389495,216.04,216.02,0.07]
[1756443991845,0.03389495,216.04,216.03,0.46]
[1756443992046,7.31,216.13,216.03,0.53]
[1756443992248,7.31,216.13,216.06,2.58964781]
[1756443992449,7.31,216.13,216.07,59.16]
[1756443993347,7.31,216.13,216.08,0.03216811]
[1756443993643,7.31,216.17,216.08,0.03216811]
[1756443994547,9.89964781,216.17,216.08,0.03216811]
[1756443994750,2.58964781,216.14,216.08,0.03216811]
[1756443995147,7.31,216.13,216.04,96.92]
[1756443995450,7.31,216.13,216.09,0.03235498]
[1756443995848,2.45972941,216.12,216.09,0.03235498]
[1756443996053,7.31,216.13,216.0,56.64]
[1756443996054,7.31,216.1,216.0,56.64]
[1756443996352,7.47,216.1,216.0,56.64]
[1756443996542,2.58964781,216.08,216.0,112.42]
[1756443996745,7.47,216.07,216.0,112.42]
[1756443997448,0.02970383,216.06,216.0,112.42]
[1756443998845,0.02970383,216.06,216.0,118.04]
[1756443999843,0.02970383,216.06,215.99,118.04]
[1756444004251,0.02970383,216.06,216.02,2.58964781]
[1756444004442,0.02970383,216.06,216.05,2.68964781]
[1756444004750,0.02970383,216.06,216.05,120.72964781]
[1756444006452,0.02970383,216.06,216.03,0.1]
[1756444006852,0.02970383,216.06,216.04,68.26]
[1756444007752,0.02970383,216.06,216.04,68.36]
[1756444008258,0.02970383,216.06,216.04,118.04]
[1756444008454,0.02970383,216.06,216.03,118.04]
[1756444008751,0.02970383,216.06,216.03,118.14]
[1756444008952,0.02970383,216.06,216.03,118.04]
[1756444009154,0.02970383,216.06,216.05,2.68964781]
[1756444010656,0.02970383,216.06,216.05,120.70964781]
[1756444010948,0.02970383,216.06,216.05,118.12]
[1756444011154,0.02970383,216.06,216.05,120.70964781]
[1756444012053,0.02970383,216.06,216.05,2.68964781]
[1756444012255,0.02970383,216.06,216.05,120.70964781]
[1756444014456,0.02970383,216.06,216.05,121.16964781]
[1756444014658,7.47,216.17,216.06,0.1]
[1756444014859,7.47,216.17,216.08,2.58964781]
[1756444015758,7.47,216.17,216.09,118.0]
[1756444015960,7.47,216.17,216.1,0.03247166]
[1756444016360,2.45997501,216.16,216.1,0.03247166]
[1756444016552,7.47,216.17,216.1,0.03247166]
[1756444018863,2.45926955,216.16,216.1,0.03247166]
[1756444019154,7.47,216.16,216.1,0.03247166]
[1756444019354,2.4592985,216.15,216.1,0.03247166]
[1756444019555,7.47,216.16,216.1,0.03247166]
[1756444019757,2.4598074,216.15,216.1,0.03247166]
[1756444019957,7.47,216.16,216.1,0.03247166]
[1756444020153,2.58964781,216.2,216.1,0.03247166]
[1756444020356,9.93084477,216.19,216.1,0.13247166]
[1756444020565,7.47,216.19,216.12,0.1]
[1756444020956,7.47,216.19,216.12,0.13214853]
[1756444022462,7.47,216.23,216.12,0.13214853]
[1756444024464,2.58964781,216.3,216.17,2.58964781]
[1756444024666,7.47,216.29,216.2,2.68964781]
[1756444025162,7.47,216.29,216.22,0.03513558]
[1756444025566,7.47,216.35,216.24,0.1]
[1756444025860,7.47,216.35,216.26,2.58964781]
[1756444026056,7.47,216.35,216.27,34.6]
[1756444026263,2.58964781,216.42,216.29,2.58964781]
[1756444026458,7.13,216.38,216.28,0.13483253]
[1756444026661,7.13,216.38,216.26,5.88]
[1756444026863,7.13,216.35,216.26,5.88]
[1756444027065,7.13,216.35,216.31,0.03116559]
[1756444028162,7.13,216.39,216.31,0.03116559]
[1756444029668,7.13,216.44,216.36,2.58964781]
[1756444029867,7.13,216.44,216.37,41.48]
[1756444030264,7.13,216.48,216.39,2.58964781]
[1756444030466,7.13,216.48,216.38,93.43253463]
[1756444030765,2.58964781,216.41,216.33,117.92]
[1756444030968,7.13,216.4,216.33,117.92]
[1756444031369,7.13,216.47,216.35,0.03150422]
[1756444031562,2.58964781,216.41,216.35,0.03150422]